fUSD/lending_fUSD_20240817
["ID","MTS","AMOUNT","RATE_DAILY","PERIOD"]
[335131882,1723883440811,-172.00474581,0.0001058,2]
[335131884,1723883440820,-201.89153077,0.0001058,2]
[335131886,1723883440830,-256.3785692,0.0001058,2]
[335131888,1723883440839,-362.34549818,0.0001058,2]
[335131890,1723883440849,-160.48336006,0.00010584,2]
[335131892,1723883440859,-200.8545806,0.00010676,3]
[335131894,1723883440868,-151.0,0.00010677,2]
[335131896,1723883440878,-151.0,0.00010677,2]
[335131898,1723883440887,-151.0,0.00010677,2]
[335131904,1723883441157,-155.846591,0.00010677,2]
[335131905,1723883441168,-155.846591,0.00010677,2]
[335131906,1723883441178,-261.252368,0.00010677,2]
[335131907,1723883441187,-170.889272,0.00010677,2]
[335131908,1723883441197,-170.889272,0.00010677,2]
[335131909,1723883441206,-68238.4660093,0.00010677,2]
[335131910,1723883441216,-151.0,0.00010677,2]
[335131911,1723883441226,-151.0,0.00010677,2]
[335131912,1723883441236,-151.0,0.00010677,2]
[335131913,1723883441245,-151.0,0.00010677,2]
[335131914,1723883441254,-423.365502,0.00010677,2]
[335131915,1723883441264,-151.420336,0.00010677,2]
[335131916,1723883441274,-279.917473,0.00010677,2]
[335131917,1723883441284,-181.12963,0.00010677,2]
[335131918,1723883441294,-181.12963,0.00010677,2]
[335131919,1723883441303,-350.852381,0.00010677,2]
[335131920,1723883441313,-350.852381,0.00010677,2]
[335131921,1723883441322,-151.0,0.00010677,2]
[335131922,1723883441331,-308.923329,0.00010677,2]
[335131923,1723883441341,-372.538934,0.00010677,2]
[335131924,1723883441350,-372.538934,0.00010677,2]
[335131925,1723883441359,-308.923329,0.00010677,2]
[335131926,1723883441369,-747.24616,0.00010677,2]
[335131927,1723883441379,-747.24616,0.00010677,2]
[335131928,1723883441388,-152.870018,0.00010677,2]
[335131929,1723883441398,-152.870018,0.00010677,2]
[335131930,1723883441408,-3154.754138,0.00010677,2]
[335131931,1723883441418,-3973.9521889,0.00010677,2]
[335131932,1723883441427,-4793.1502399,0.00010677,2]
[335131933,1723883441437,-5612.3482908,0.00010677,2]
[335131934,1723883441447,-6431.5463418,0.00010677,2]
[335131935,1723883441456,-151.0,0.00010677,2]
[335131936,1723883441466,-7236.7154071,0.00010677,2]
[335131937,1723883441475,-8453.1041132,0.00010677,2]
[335131938,1723883441484,-9669.4928193,0.00010677,2]
[335131939,1723883441494,-10885.8815254,0.00010677,2]
[335131940,1723883441503,-12102.2702315,0.00010677,2]
[335131941,1723883441512,-4691.23433793,0.00010677,2]
[335131942,1723883441522,-519.0,0.0001068,2]
[335131943,1723883441532,-2266.86735154,0.0001068,2]
[335131944,1723883441542,-215705.26894448,0.0001068,2]
[335131945,1723883441555,-693049.7353599,0.0001068,2]
[335131946,1723883441567,-36228.28434909,0.0001068,2]
[335131947,1723883441581,-155.005502,0.0001068,2]
[335131948,1723883441592,-151.0,0.0001068,2]
[335131949,1723883441602,-151.0,0.0001068,2]
[335131950,1723883441611,-155.846591,0.0001068,2]
[335131951,1723883441621,-155.846591,0.0001068,2]
[335131952,1723883441631,-170.889272,0.0001068,2]
[335131953,1723883441641,-170.889272,0.0001068,2]
[335131954,1723883441653,-156.285,0.0001068,2]
[335131955,1723883441665,-156.285,0.0001068,2]
[335131956,1723883441674,-151.0,0.0001068,2]
[335131957,1723883441683,-151.0,0.0001068,2]
[335131958,1723883441692,-151.0,0.0001068,2]
[335131959,1723883441702,-151.0,0.0001068,2]
[335131960,1723883441711,-151.0,0.0001068,2]
[335131961,1723883441721,-423.365502,0.0001068,2]
[335131962,1723883441731,-181.12963,0.0001068,2]
[335131963,1723883441741,-181.12963,0.0001068,2]
[335131964,1723883441752,-350.852381,0.0001068,2]
[335131965,1723883441761,-350.852381,0.0001068,2]
[335131966,1723883441771,-151.0,0.0001068,2]
[335131967,1723883441780,-308.923329,0.0001068,2]
[335131968,1723883441790,-372.538934,0.0001068,2]
[335131969,1723883441800,-372.538934,0.0001068,2]
[335131970,1723883441810,-308.923329,0.0001068,2]
[335131971,1723883441819,-212.240928,0.0001068,2]
[335131972,1723883441829,-212.240928,0.0001068,2]
[335131973,1723883441839,-747.24616,0.0001068,2]
[335131974,1723883441848,-747.24616,0.0001068,2]
[335131975,1723883441857,-151.0,0.0001068,2]
[335131976,1723883441867,-152.870018,0.0001068,2]
[335131977,1723883441876,-152.870018,0.0001068,2]
[335131978,1723883441886,-151.0,0.0001068,2]
[335131979,1723883441896,-431.931482,0.0001068,2]
[335131980,1723883441905,-431.931482,0.0001068,2]
[335131981,1723883441915,-217.78026,0.0001068,2]
[335131982,1723883441925,-217.78026,0.0001068,2]
[335131983,1723883441934,-220.553176,0.0001068,2]
[335131984,1723883441945,-220.553176,0.0001068,2]
[335131985,1723883441956,-162.241445,0.0001068,2]
[335131986,1723883441965,-162.241445,0.0001068,2]
[335131987,1723883441974,-151.0,0.0001068,2]
[335131988,1723883441983,-4140.85502649,0.0001068,2]
[335131989,1723883442324,-2463.81135,0.0001068,2]
[335131990,1723883442337,-1030.92677642,0.0001068,2]
[335132003,1723883444592,-2967.82195014,0.0001068,2]
[335132004,1723883444603,-932.77778032,0.0001068,2]
[335132005,1723883444614,-431.87,0.0001068,2]
[335132010,1723883447578,400.0,9.9e-05,3]
[335132011,1723883484451,2545.44,9.783e-05,2]
[335132012,1723883701530,194.76,9.583e-05,2]
[335132013,1723883702213,172.55,9.583e-05,2]
[335132014,1723883740345,200.0,9.588e-05,2]
[335132015,1723883764348,2348.59,9.578e-05,2]
[335132016,1723883771077,164.59,9.556e-05,2]
[335132017,1723883789838,250.0,9.558e-05,2]
[335132018,1723883800421,20000.0,9.982e-05,2]
[335132019,1723883821091,200.0,9.525e-05,2]
[335132020,1723883822825,200.0,9.525e-05,2]
[335132021,1723883839706,285.13,9.487e-05,2]
[335132022,1723883844108,2975.58,9.509e-05,2]
[335132023,1723883869336,2361.53255525,9.909e-05,2]
[335132024,1723883885717,559.19,9.504e-05,2]
[335132025,1723883942939,155.14790047,9.943e-05,2]
[335132026,1723883952005,3722.0,9.529e-05,2]
[335132027,1723884003167,150.0,9.529e-05,2]
[335132028,1723884017537,439.4227239,9.943e-05,2]
[335132029,1723884025977,243.12714442,9.943e-05,2]
[335132030,1723884044484,23900.0,9.496e-05,2]
[335132031,1723884078484,155.0,9.943e-05,2]
[335132032,1723884109858,244.26,8.219e-05,2]
[335132033,1723884111741,-11480.0,0.000102,5]
[335132034,1723884157839,415.84778706,9.943e-05,2]
[335132035,1723884160542,155.26026497,9.943e-05,2]
[335132036,1723884206498,316.9035925,9.943e-05,2]
[335132037,1723884282711,200.0,9.547e-05,2]
[335132038,1723884297830,526.89163581,9.943e-05,2]
[335132039,1723884299405,840.0,9.555e-05,2]
[335132045,1723884379292,-598.0,9.987e-05,2]
[335132046,1723884406934,155.0,9.988e-05,2]
[335132054,1723884444012,300.0,9.9e-05,3]
[335132087,1723884594072,232.04,8.219e-05,2]
[335132095,1723884632327,-179.4623719,9.999e-05,2]
[335132098,1723884632339,-427.12194525,9.999e-05,2]
[335132100,1723884632352,-550.0,0.0001,2]
[335132102,1723884632364,-700.0,0.0001,3]
[335132104,1723884632375,-158.64164025,0.0001,2]
[335132106,1723884632386,-211.03413449,0.0001,2]
[335132107,1723884632396,-271.17940484,0.0001,2]
[335132108,1723884632408,-248.95855497,0.00010009,2]
[335132109,1723884632419,-166.39780491,0.00010009,2]
[335132110,1723884632430,-155.0,0.00010009,2]
[335132111,1723884632442,-330.89872604,0.00010097,2]
[335132112,1723884632453,-1100.0,0.000101,3]
[335132113,1723884632465,-150.0,0.00010164,2]
[335132114,1723884632477,-300.0,0.00010199,2]
[335132115,1723884632490,-426.41,0.000102,2]
[335132116,1723884632502,-924.89541735,0.000102,3]
[335132117,1723884632521,-575.10458265,0.000102,3]
[335132118,1723884632532,-441.93854479,0.0001027,2]
[335132119,1723884632552,-1001.55012815,0.0001027,2]
[335132120,1723884632566,-1007.07587274,0.0001027,2]
[335132121,1723884632607,-715.77999834,0.0001027,2]
[335132122,1723884632621,-450.0,0.0001027,2]
[335132123,1723884632635,-2977.63233919,0.0001027,2]
[335132124,1723884632665,-36767.02311679,0.0001027,2]
[335132125,1723884632676,-785.56,0.000103,2]
[335132126,1723884632687,-1900.0,0.000103,3]
[335132127,1723884632697,-150.0,0.00010383,2]
[335132128,1723884632707,-11144.04060767,0.00010384,2]
[335132129,1723884632720,-791.24822385,0.00010384,2]
[335132130,1723884632734,-88064.71116848,0.00010384,2]
[335132131,1723884632745,-281.1116,0.00010384,2]
[335132132,1723884632757,-6855.8753,0.00010384,2]
[335132133,1723884632768,-2643.411,0.00010384,2]
[335132134,1723884632781,-1000.0,0.00010384,2]
[335132136,1723884632793,-2500.0,0.00010384,2]
[335132138,1723884632804,-300.0,0.000104,3]
[335132139,1723884632816,-232.04,0.00010451,2]
[335132140,1723884632829,-169.54763546,0.00010471,2]
[335132141,1723884632840,-328026.60936649,0.00010484,2]
[335132144,1723884632852,-300.0,0.000105,3]
[335132146,1723884632864,-523.14136037,0.00010505,2]
[335132147,1723884632875,-454.48746689,0.00010505,2]
[335132148,1723884632885,-536.50516291,0.00010566,2]
[335132149,1723884632896,-1131.98185,0.0001057,2]
[335132150,1723884632906,-171.86552435,0.00010573,2]
[335132151,1723884632916,-171.86552433,0.00010575,2]
[335132152,1723884632927,-1000.0,0.00010577,2]
[335132153,1723884632937,-174.68941142,0.00010577,2]
[335132154,1723884632949,-152.67384192,0.00010577,2]
[335132155,1723884632960,-171.86552433,0.00010577,2]
[335132156,1723884632972,-199.73100077,0.00010584,2]
[335132157,1723884632985,-151.0,0.00010584,2]
[335132158,1723884632996,-200.82780429,0.00010584,2]
[335132159,1723884633006,-2689.80017429,0.00010584,2]
[335132160,1723884633016,-3000.0,0.00010584,2]
[335132161,1723884633029,-162716.3116,0.00010584,2]
[335132162,1723884633040,-500.0,0.00010584,2]
[335132163,1723884633052,-5725.7164,0.00010584,2]
[335132164,1723884633064,-3236.1997,0.00010584,2]
[335132165,1723884633076,-6224.39950182,0.00010584,2]
[335132166,1723884633087,-174.68941142,0.00010598,2]
[335132167,1723884633098,-300.0,0.000106,3]
[335132168,1723884633109,-153.72023151,0.00010605,2]
[335132169,1723884633124,-174.68941142,0.00010618,2]
[335132170,1723884633137,-5557.60710403,0.00010624,2]
[335132171,1723884633149,-1000.0,0.00010627,2]
[335132172,1723884633162,-1000.0,0.00010627,2]
[335132173,1723884633173,-1000.0,0.00010627,2]
[335132174,1723884633187,-1000.0,0.00010627,2]
[335132175,1723884633198,-1000.0,0.00010627,2]
[335132176,1723884633210,-1000.0,0.00010627,2]
[335132177,1723884633221,-1000.0,0.00010627,2]
[335132178,1723884633231,-1000.0,0.00010627,2]
[335132179,1723884633242,-1000.0,0.00010627,2]
[335132180,1723884633254,-1000.0,0.00010627,2]
[335132181,1723884633264,-1000.0,0.00010627,2]
[335132182,1723884633275,-1000.0,0.00010627,2]
[335132183,1723884633286,-1000.0,0.00010627,2]
[335132184,1723884633297,-1000.0,0.00010627,2]
[335132185,1723884633308,-1000.0,0.00010627,2]
[335132186,1723884633318,-1000.0,0.00010627,2]
[335132187,1723884633329,-1000.0,0.00010627,2]
[335132188,1723884633341,-1000.0,0.00010627,2]
[335132189,1723884633353,-1000.0,0.00010627,2]
[335132190,1723884633364,-1000.0,0.00010627,2]
[335132191,1723884633374,-1000.0,0.00010627,2]
[335132192,1723884633385,-1000.0,0.00010627,2]
[335132193,1723884633396,-1000.0,0.00010627,2]
[335132194,1723884633406,-1000.0,0.00010627,2]
[335132195,1723884633417,-1000.0,0.00010627,2]
[335132196,1723884633428,-1000.0,0.00010627,2]
[335132197,1723884633438,-1000.0,0.00010627,2]
[335132198,1723884633449,-1000.0,0.00010627,2]
[335132199,1723884633460,-1000.0,0.00010627,2]
[335132200,1723884633471,-1000.0,0.00010627,2]
[335132201,1723884633481,-817.6128,0.00010627,2]
[335132202,1723884633492,-174.68941142,0.00010639,2]
[335132203,1723884633503,-174.68941142,0.00010659,2]
[335132204,1723884633514,-151.0,0.00010673,2]
[335132205,1723884633524,-151.0,0.00010673,2]
[335132206,1723884633536,-151.0,0.00010673,2]
[335132207,1723884633547,-151.0,0.00010673,2]
[335132208,1723884633558,-151.0,0.00010673,2]
[335132209,1723884633569,-151.0,0.00010673,2]
[335132210,1723884633580,-151.0,0.00010673,2]
[335132211,1723884633591,-151.0,0.00010673,2]
[335132212,1723884633601,-220.014267,0.00010673,2]
[335132213,1723884633612,-388.738334,0.00010673,2]
[335132214,1723884633622,-388.738334,0.00010673,2]
[335132215,1723884633633,-247.138663,0.00010673,2]
[335132216,1723884633644,-247.138663,0.00010673,2]
[335132217,1723884633655,-151.0,0.00010673,2]
[335132218,1723884633665,-151.0,0.00010673,2]
[335132219,1723884633676,-597.796928,0.00010673,2]
[335132220,1723884633687,-151.0,0.00010673,2]
[335132221,1723884633697,-597.796928,0.00010673,2]
[335132222,1723884633708,-261.493027,0.00010673,2]
[335132223,1723884633719,-261.493027,0.00010673,2]
[335132224,1723884633730,-261.493027,0.00010673,2]
[335132225,1723884633740,-261.493027,0.00010673,2]
[335132226,1723884633751,-298.031147,0.00010673,2]
[335132227,1723884633761,-174.890593,0.00010673,2]
[335132228,1723884633772,-174.890593,0.00010673,2]
[335132229,1723884633782,-298.031147,0.00010673,2]
[335132230,1723884633793,-174.890593,0.00010673,2]
[335132231,1723884633805,-174.890593,0.00010673,2]
[335132232,1723884633816,-151.0,0.00010673,2]
[335132233,1723884633827,-151.0,0.00010673,2]
[335132234,1723884633837,-191.016835,0.00010673,2]
[335132235,1723884633848,-191.016835,0.00010673,2]
[335132236,1723884633859,-151.0,0.00010673,2]
[335132237,1723884633869,-198.497858,0.00010673,2]
[335132238,1723884633880,-198.497858,0.00010673,2]
[335132239,1723884633892,-381.028952,0.00010673,2]
[335132240,1723884633903,-381.028952,0.00010673,2]
[335132241,1723884633914,-61871.6459999,0.00010673,2]
[335132242,1723884633925,-1172.138132,0.00010673,2]
[335132243,1723884633937,-1172.138132,0.00010673,2]
[335132244,1723884633948,-151.0,0.00010673,2]
[335132245,1723884633960,-151.0,0.00010673,2]
[335132246,1723884633971,-15040.368,0.00010673,2]
[335132247,1723884633982,-151.0,0.00010673,2]
[335132248,1723884633994,-10563.6457504,0.00010673,2]
[335132249,1723884634004,-483.716735,0.00010673,2]
[335132250,1723884634015,-151.0,0.00010673,2]
[335132251,1723884634026,-483.716735,0.00010673,2]
[335132252,1723884634037,-151.0,0.00010673,2]
[335132253,1723884634050,-4766.9363492,0.00010673,2]
[335132254,1723884634061,-19179.8272217,0.00010673,2]
[335132255,1723884634072,-151.0,0.00010673,2]
[335132256,1723884634083,-151.0,0.00010673,2]
[335132257,1723884634095,-151.0,0.00010673,2]
[335132258,1723884634106,-151.0,0.00010673,2]
[335132259,1723884634118,-44922.8929148,0.00010673,2]
[335132260,1723884634132,-151.0,0.00010673,2]
[335132261,1723884634143,-331.6283076,0.00010673,2]
[335132262,1723884634153,-555.0,0.00010677,2]
[335132263,1723884634166,-151.0,0.00010677,2]
[335132264,1723884634177,-151.0,0.00010677,2]
[335132265,1723884634188,-151.0,0.00010677,2]
[335132266,1723884634199,-151.0,0.00010677,2]
[335132267,1723884634211,-151.0,0.00010677,2]
[335132268,1723884634223,-151.0,0.00010677,2]
[335132269,1723884634234,-151.0,0.00010677,2]
[335132270,1723884634245,-151.0,0.00010677,2]
[335132271,1723884634257,-151.0,0.00010677,2]
[335132272,1723884634268,-151.0,0.00010677,2]
[335132273,1723884634279,-151.0,0.00010677,2]
[335132274,1723884634290,-151.0,0.00010677,2]
[335132275,1723884634303,-151.0,0.00010677,2]
[335132276,1723884634313,-151.0,0.00010677,2]
[335132277,1723884634324,-151.0,0.00010677,2]
[335132278,1723884634336,-151.0,0.00010677,2]
[335132279,1723884634347,-151.0,0.00010677,2]
[335132280,1723884634358,-231.707686,0.00010677,2]
[335132281,1723884634370,-151.0,0.00010677,2]
[335132282,1723884634382,-151.0,0.00010677,2]
[335132283,1723884634393,-151.0,0.00010677,2]
[335132284,1723884634405,-151.0,0.00010677,2]
[335132285,1723884634416,-151.0,0.00010677,2]
[335132286,1723884634427,-151.0,0.00010677,2]
[335132287,1723884634438,-151.0,0.00010677,2]
[335132288,1723884634449,-151.0,0.00010677,2]
[335132289,1723884634460,-151.0,0.00010677,2]
[335132290,1723884634471,-151.0,0.00010677,2]
[335132291,1723884634482,-151.0,0.00010677,2]
[335132292,1723884634493,-151.0,0.00010677,2]
[335132293,1723884634504,-151.0,0.00010677,2]
[335132294,1723884634516,-151.0,0.00010677,2]
[335132295,1723884634527,-152.3795,0.00010677,2]
[335132296,1723884634539,-280.681905,0.00010677,2]
[335132297,1723884634551,-280.681905,0.00010677,2]
[335132298,1723884634563,-280.681905,0.00010677,2]
[335132299,1723884634575,-151.0,0.00010677,2]
[335132300,1723884634586,-151.0,0.00010677,2]
[335132301,1723884634597,-151.0,0.00010677,2]
[335132302,1723884634608,-151.0,0.00010677,2]
[335132303,1723884634618,-151.0,0.00010677,2]
[335132304,1723884634630,-388.738334,0.00010677,2]
[335132305,1723884634640,-388.738334,0.00010677,2]
[335132306,1723884634651,-388.738334,0.00010677,2]
[335132307,1723884634663,-388.738334,0.00010677,2]
[335132308,1723884634674,-388.738334,0.00010677,2]
[335132309,1723884634684,-388.738334,0.00010677,2]
[335132310,1723884634695,-388.738334,0.00010677,2]
[335132311,1723884634706,-388.738334,0.00010677,2]
[335132312,1723884634726,-388.738334,0.00010677,2]
[335132313,1723884634741,-388.738334,0.00010677,2]
[335132314,1723884634753,-247.138663,0.00010677,2]
[335132315,1723884634766,-247.138663,0.00010677,2]
[335132316,1723884634778,-247.138663,0.00010677,2]
[335132317,1723884634790,-247.138663,0.00010677,2]
[335132318,1723884634808,-247.138663,0.00010677,2]
[335132319,1723884634820,-247.138663,0.00010677,2]
[335132320,1723884634832,-247.138663,0.00010677,2]
[335132321,1723884634845,-247.138663,0.00010677,2]
[335132322,1723884634857,-247.138663,0.00010677,2]
[335132323,1723884634869,-247.138663,0.00010677,2]
[335132324,1723884634881,-151.0,0.00010677,2]
[335132325,1723884634893,-151.0,0.00010677,2]
[335132326,1723884634903,-151.0,0.00010677,2]
[335132327,1723884634915,-151.0,0.00010677,2]
[335132328,1723884634927,-151.0,0.00010677,2]
[335132329,1723884634938,-151.0,0.00010677,2]
[335132330,1723884634951,-151.0,0.00010677,2]
[335132331,1723884634962,-151.0,0.00010677,2]
[335132332,1723884634974,-151.0,0.00010677,2]
[335132333,1723884634986,-151.0,0.00010677,2]
[335132334,1723884634997,-151.0,0.00010677,2]
[335132335,1723884635009,-597.796928,0.00010677,2]
[335132336,1723884635019,-151.0,0.00010677,2]
[335132337,1723884635031,-597.796928,0.00010677,2]
[335132338,1723884635042,-151.0,0.00010677,2]
[335132339,1723884635053,-597.796928,0.00010677,2]
[335132340,1723884635065,-151.0,0.00010677,2]
[335132341,1723884635075,-597.796928,0.00010677,2]
[335132342,1723884635087,-151.0,0.00010677,2]
[335132343,1723884635098,-597.796928,0.00010677,2]
[335132344,1723884635110,-597.796928,0.00010677,2]
[335132345,1723884635123,-597.796928,0.00010677,2]
[335132346,1723884635135,-597.796928,0.00010677,2]
[335132347,1723884635146,-597.796928,0.00010677,2]
[335132348,1723884635157,-597.796928,0.00010677,2]
[335132349,1723884635168,-261.493027,0.00010677,2]
[335132350,1723884635179,-261.493027,0.00010677,2]
[335132351,1723884635190,-261.493027,0.00010677,2]
[335132352,1723884635201,-261.493027,0.00010677,2]
[335132353,1723884635213,-261.493027,0.00010677,2]
[335132354,1723884635223,-261.493027,0.00010677,2]
[335132355,1723884635234,-261.493027,0.00010677,2]
[335132356,1723884635244,-261.493027,0.00010677,2]
[335132357,1723884635256,-261.493027,0.00010677,2]
[335132358,1723884635266,-261.493027,0.00010677,2]
[335132359,1723884635277,-298.031147,0.00010677,2]
[335132360,1723884635287,-298.031147,0.00010677,2]
[335132361,1723884635301,-298.031147,0.00010677,2]
[335132362,1723884635311,-298.031147,0.00010677,2]
[335132363,1723884635321,-298.031147,0.00010677,2]
[335132364,1723884635332,-174.890593,0.00010677,2]
[335132365,1723884635342,-174.890593,0.00010677,2]
[335132366,1723884635353,-174.890593,0.00010677,2]
[335132367,1723884635363,-174.890593,0.00010677,2]
[335132368,1723884635374,-174.890593,0.00010677,2]
[335132369,1723884635384,-298.031147,0.00010677,2]
[335132370,1723884635394,-298.031147,0.00010677,2]
[335132371,1723884635405,-298.031147,0.00010677,2]
[335132372,1723884635415,-298.031147,0.00010677,2]
[335132373,1723884635425,-298.031147,0.00010677,2]
[335132374,1723884635435,-174.890593,0.00010677,2]
[335132375,1723884635446,-174.890593,0.00010677,2]
[335132376,1723884635457,-174.890593,0.00010677,2]
[335132377,1723884635467,-174.890593,0.00010677,2]
[335132378,1723884635477,-174.890593,0.00010677,2]
[335132379,1723884635487,-151.0,0.00010677,2]
[335132380,1723884635497,-151.0,0.00010677,2]
[335132381,1723884635507,-151.0,0.00010677,2]
[335132382,1723884635517,-235.311762,0.00010677,2]
[335132383,1723884635527,-191.016835,0.00010677,2]
[335132384,1723884635537,-191.016835,0.00010677,2]
[335132385,1723884635548,-191.016835,0.00010677,2]
[335132386,1723884635559,-191.016835,0.00010677,2]
[335132387,1723884635569,-191.016835,0.00010677,2]
[335132388,1723884635981,-191.016835,0.00010677,2]
[335132389,1723884636003,-191.016835,0.00010677,2]
[335132390,1723884636018,-191.016835,0.00010677,2]
[335132391,1723884636028,-191.016835,0.00010677,2]
[335132392,1723884636037,-191.016835,0.00010677,2]
[335132393,1723884636046,-191.016835,0.00010677,2]
[335132394,1723884636055,-191.016835,0.00010677,2]
[335132395,1723884636065,-154.656534,0.00010677,2]
[335132396,1723884636074,-198.497858,0.00010677,2]
[335132397,1723884636083,-198.497858,0.00010677,2]
[335132398,1723884636093,-198.497858,0.00010677,2]
[335132399,1723884636101,-198.497858,0.00010677,2]
[335132400,1723884636110,-198.497858,0.00010677,2]
[335132401,1723884636123,-198.497858,0.00010677,2]
[335132402,1723884636132,-198.497858,0.00010677,2]
[335132403,1723884636141,-198.497858,0.00010677,2]
[335132404,1723884636150,-198.497858,0.00010677,2]
[335132405,1723884636159,-198.497858,0.00010677,2]
[335132406,1723884636169,-198.497858,0.00010677,2]
[335132407,1723884636178,-198.497858,0.00010677,2]
[335132408,1723884636187,-381.028952,0.00010677,2]
[335132409,1723884636198,-381.028952,0.00010677,2]
[335132410,1723884636208,-381.028952,0.00010677,2]
[335132411,1723884636218,-381.028952,0.00010677,2]
[335132412,1723884636228,-381.028952,0.00010677,2]
[335132413,1723884636238,-381.028952,0.00010677,2]
[335132414,1723884636247,-381.028952,0.00010677,2]
[335132415,1723884636257,-381.028952,0.00010677,2]
[335132416,1723884636266,-381.028952,0.00010677,2]
[335132417,1723884636276,-381.028952,0.00010677,2]
[335132418,1723884636286,-381.028952,0.00010677,2]
[335132419,1723884636296,-381.028952,0.00010677,2]
[335132420,1723884636305,-59886.6542666,0.00010677,2]
[335132421,1723884636314,-57901.6625333,0.00010677,2]
[335132422,1723884636323,-55916.6707999,0.00010677,2]
[335132423,1723884636332,-53931.6790666,0.00010677,2]
[335132424,1723884636341,-51946.6873333,0.00010677,2]
[335132425,1723884636350,-1172.138132,0.00010677,2]
[335132426,1723884636359,-1172.138132,0.00010677,2]
[335132427,1723884636368,-1172.138132,0.00010677,2]
[335132428,1723884636377,-1172.138132,0.00010677,2]
[335132429,1723884636385,-1172.138132,0.00010677,2]
[335132430,1723884636394,-1172.138132,0.00010677,2]
[335132431,1723884636404,-1172.138132,0.00010677,2]
[335132432,1723884636413,-1172.138132,0.00010677,2]
[335132433,1723884636423,-1172.138132,0.00010677,2]
[335132434,1723884636432,-1172.138132,0.00010677,2]
[335132435,1723884636441,-1172.138132,0.00010677,2]
[335132436,1723884636451,-1172.138132,0.00010677,2]
[335132437,1723884636460,-151.0,0.00010677,2]
[335132438,1723884636469,-151.0,0.00010677,2]
[335132439,1723884636478,-151.0,0.00010677,2]
[335132440,1723884636487,-212.716355,0.00010677,2]
[335132441,1723884636495,-151.0,0.00010677,2]
[335132442,1723884636504,-151.0,0.00010677,2]
[335132443,1723884636513,-151.0,0.00010677,2]
[335132444,1723884636522,-151.0,0.00010677,2]
[335132445,1723884636531,-151.0,0.00010677,2]
[335132446,1723884636540,-151.0,0.00010677,2]
[335132447,1723884636550,-14576.2208,0.00010677,2]
[335132448,1723884636559,-14112.0736,0.00010677,2]
[335132449,1723884636569,-13647.9264,0.00010677,2]
[335132450,1723884636578,-13183.7792,0.00010677,2]
[335132451,1723884636586,-12719.632,0.00010677,2]
[335132452,1723884636595,-151.0,0.00010677,2]
[335132453,1723884636604,-151.0,0.00010677,2]
[335132454,1723884636613,-151.0,0.00010677,2]
[335132455,1723884636622,-151.0,0.00010677,2]
[335132456,1723884636631,-151.0,0.00010677,2]
[335132457,1723884636640,-151.0,0.00010677,2]
[335132458,1723884636650,-10248.4764565,0.00010677,2]
[335132459,1723884636659,-9933.3071626,0.00010677,2]
[335132460,1723884636667,-9618.1378687,0.00010677,2]
[335132461,1723884636677,-9302.9685748,0.00010677,2]
[335132462,1723884636686,-8987.7992809,0.00010677,2]
[335132463,1723884636695,-483.716735,0.00010677,2]
[335132464,1723884636704,-483.716735,0.00010677,2]
[335132465,1723884636713,-483.716735,0.00010677,2]
[335132466,1723884636722,-483.716735,0.00010677,2]
[335132467,1723884636731,-483.716735,0.00010677,2]
[335132468,1723884636740,-151.0,0.00010677,2]
[335132469,1723884636748,-483.716735,0.00010677,2]
[335132470,1723884636759,-151.0,0.00010677,2]
[335132471,1723884636770,-151.0,0.00010677,2]
[335132472,1723884636779,-151.0,0.00010677,2]